bitfinex/quotes_ETHUSD_20260114
["timestamp","ask_amount","ask_price","bid_price","bid_amount"]
[1768427648202,3.37164701,3369.7,3369.2,0.95240539]
[1768427648497,4.10406561,3369.7,3369.2,0.95240539]
[1768427648700,4.10406561,3369.7,3369.2,0.001]
[1768427648898,7.07173855,3369.7,3369.2,0.001]
[1768427649395,0.98499472,3369.6,3369.2,0.001]
[1768427650598,0.98499472,3369.6,3368.9,0.001]
[1768427650913,0.80567333,3369.5,3368.9,0.001]
[1768427651106,0.02969224,3369.4,3368.9,0.001]
[1768427651698,2.96797554,3369.3,3368.9,0.001]
[1768427652096,0.02969224,3369.2,3368.9,0.001]
[1768427652302,3.95297026,3369.3,3368.9,0.001]
[1768427652501,4.72561521,3369.3,3368.9,0.001]
[1768427652711,3.74062049,3369.3,3369.2,0.001]
[1768427652883,3.74062049,3369.3,3368.9,0.001]
[1768427653205,3.74062049,3369.3,3368.5,0.001]
[1768427653206,1.01468696,3369.2,3368.5,0.001]
[1768427653387,1.79771288,3369.1,3368.5,0.001]
[1768427653712,2.96823983,3369.0,3368.5,0.001]
[1768427654711,3.95323455,3369.0,3368.5,0.001]
[1768427654876,2.96823983,3369.0,3368.5,0.001]
[1768427655482,1.38899472,3368.9,3368.5,0.001]
[1768427655692,0.81381925,3368.8,3368.5,0.001]
[1768427655901,3.78228243,3368.8,3368.2,1.0]
[1768427656104,7.73574033,3368.8,3368.2,1.0]
[1768427656505,7.73574033,3368.8,3367.4,0.002]
[1768427656506,0.98499472,3368.7,3367.4,0.002]
[1768427656703,0.98499472,3368.7,3366.2,0.15673677]
[1768427656704,0.98499472,3368.0,3366.7,2.97226633]
[1768427657016,12.68762484,3368.8,3366.7,2.97226633]
[1768427657017,0.98499472,3367.8,3366.9,0.95140539]
[1768427657219,0.98499472,3367.8,3366.7,0.002]
[1768427657220,0.98499472,3367.8,3367.0,0.95140539]
[1768427657615,0.404,3367.9,3362.2,8.51062483]
[1768427657616,0.98499472,3367.3,3365.0,3.17698062]
[1768427657919,0.98499472,3367.3,3363.0,5.42902562]
[1768427657920,0.98499472,3365.8,3363.0,0.22201538]
[1768427658120,0.98499472,3365.6,3363.4,0.22201538]
[1768427658415,0.98499472,3365.3,3363.1,0.22201538]
[1768427658602,0.98499472,3365.1,3363.1,0.22201538]
[1768427658803,5.27951965,3365.4,3363.1,0.22201538]
[1768427658804,0.98499472,3364.9,3363.1,0.22201538]
[1768427659006,0.98499472,3364.7,3363.1,0.22201538]
[1768427659187,0.98499472,3364.7,3363.3,0.22201538]
[1768427659707,0.98499472,3364.5,3363.2,0.65721237]
[1768427660017,0.98499472,3364.5,3362.2,0.62501538]
[1768427660018,0.98499472,3364.1,3362.2,0.62501538]
[1768427660185,0.98499472,3363.7,3361.8,0.22201538]
[1768427660598,1.37606789,3363.6,3362.3,0.22201538]
[1768427660813,1.37606789,3363.5,3362.4,0.25175604]
[1768427661014,0.97206789,3363.4,3362.4,2.97399688]
[1768427661217,0.93349247,3363.3,3362.5,0.59482184]
[1768427661416,0.93349247,3363.3,3360.6,3.13049878]
[1768427661417,0.93349247,3363.3,3361.8,2.97458981]
[1768427661619,0.93349247,3363.3,3361.9,2.97447583]
[1768427662198,0.93349247,3363.3,3361.7,2.97467798]
[1768427662199,0.93349247,3363.2,3361.7,5.9493634]
[1768427662649,0.93349247,3363.2,3361.8,0.25176134]
[1768427662787,3.20590279,3364.4,3361.7,2.97467798]
[1768427662788,0.93349247,3363.4,3361.7,2.97467798]
[1768427662989,0.93349247,3363.3,3361.8,0.31966934]
[1768427663188,0.93349247,3363.3,3361.5,0.22201538]
[1768427663419,0.93349247,3363.3,3361.1,2.97520344]
[1768427663632,0.93349247,3363.3,3361.4,2.97492968]
[1768427663840,0.93349247,3363.1,3361.0,0.403]
[1768427664190,0.93349247,3362.9,3361.0,3.37824202]
[1768427664390,8.92060659,3363.0,3361.0,3.37824202]
[1768427664391,0.93349247,3362.7,3362.0,0.002]
[1768427665122,0.93349247,3363.0,3361.6,0.002]
[1768427666122,0.93349247,3362.8,3361.6,0.002]
[1768427666311,0.93349247,3362.6,3361.6,0.002]
[1768427666696,0.63536933,3363.7,3361.6,0.002]
[1768427666890,0.93349247,3363.5,3361.6,0.002]
[1768427667097,0.93349247,3363.9,3361.7,0.27930677]
[1768427667329,0.93349247,3365.4,3362.8,0.27930677]
[1768427667640,0.93349247,3365.4,3361.8,0.41992585]
[1768427667641,0.93349247,3365.4,3363.0,0.27930677]
[1768427667808,0.93349247,3365.2,3362.6,0.27930677]
[1768427668009,0.93349247,3365.0,3362.7,0.403]
[1768427668344,0.93349247,3364.8,3362.8,5.94742476]
[1768427668495,5.97340526,3364.9,3362.9,0.62267315]
[1768427668496,0.93349247,3364.6,3362.9,0.62267315]
[1768427668698,0.93349247,3364.6,3363.0,0.403]
[1768427669227,0.93349247,3364.6,3363.1,0.403]
[1768427669397,0.93349247,3364.4,3363.1,0.403]
[1768427669906,0.93349247,3364.2,3363.1,0.403]
[1768427670310,0.02969224,3364.1,3363.2,2.9733587]
[1768427670533,0.02969224,3364.1,3363.3,0.33763587]
[1768427670728,0.96318471,3364.1,3363.3,0.33763587]
[1768427671229,0.93349247,3364.1,3363.3,0.33763587]
[1768427671534,0.93349247,3365.0,3363.4,0.30903858]
[1768427671701,0.93349247,3365.0,3363.5,0.64384974]
[1768427672097,0.93349247,3364.8,3363.5,0.64384974]
[1768427672294,0.93349247,3364.6,3363.3,2.97324056]
[1768427672532,3.00175742,3364.7,3363.4,2.97318047]
[1768427672533,0.93349247,3364.4,3363.4,2.97318047]
[1768427672747,0.93349247,3364.4,3363.5,2.97308097]
[1768427672910,0.93349247,3364.4,3363.3,0.403]
[1768427673234,0.93349247,3364.3,3363.3,3.37626139]
[1768427673415,0.93349247,3364.3,3363.4,0.63497076]
[1768427673732,0.93349247,3364.1,3363.4,0.63497076]
[1768427673899,0.96318471,3364.0,3362.9,2.9735481]
[1768427674098,0.96318471,3364.0,3361.8,0.128]
[1768427674295,0.93349247,3363.6,3361.5,2.97486241]
[1768427674498,6.87932591,3363.7,3361.6,0.43274773]
[1768427674718,0.72833259,3363.6,3361.7,0.63824726]
[1768427675037,0.72833259,3363.6,3361.8,0.02974596]
[1768427675433,2.97287045,3363.8,3361.7,0.63824726]
[1768427675741,1.33749247,3364.5,3361.7,0.63824726]
[1768427675908,2.97229818,3364.4,3361.8,1.0019721]
[1768427676098,4.30970728,3364.5,3361.8,1.0019721]
[1768427676426,4.30970728,3364.5,3362.0,0.97222614]
[1768427676427,0.404,3364.5,3362.0,0.97222614]
[1768427676602,0.33760336,3364.4,3362.2,0.97222614]
[1768427677305,0.33760336,3364.4,3362.4,0.97222614]
[1768427677506,5.94388968,3364.8,3362.6,0.97222614]
[1768427678199,0.93349247,3364.7,3362.6,0.97222614]
[1768427678399,0.93349247,3364.3,3362.1,4.91245722]
[1768427678596,0.93349247,3364.1,3362.1,0.97222614]
[1768427678825,0.93349247,3364.3,3362.4,0.97222614]
[1768427679030,1.33749247,3364.3,3362.7,0.97222614]
[1768427679227,0.93349247,3364.2,3362.7,0.97222614]
[1768427679724,0.93349247,3364.5,3362.7,0.97222614]
[1768427679924,0.93349247,3364.2,3362.5,0.403]
[1768427680126,0.96318471,3364.1,3362.5,3.37696236]
[1768427680327,0.02969224,3364.1,3362.7,0.97222614]
[1768427680528,8.9153046,3365.0,3362.9,0.97222614]
[1768427680703,0.93349247,3364.9,3362.9,0.97222614]
[1768427681035,0.93349247,3364.7,3363.0,0.97222614]
[1768427681324,1.0002575,3364.8,3363.2,0.97222614]
[1768427681524,0.96318471,3364.7,3362.9,0.7892216]
[1768427681746,0.93349247,3364.7,3362.9,0.7892216]
[1768427682145,0.93349247,3364.7,3363.0,0.97222614]
[1768427682349,1.0002575,3364.8,3363.2,0.97222614]
[1768427682350,2.97220983,3364.5,3363.2,0.97222614]
[1768427682518,2.97220983,3364.5,3363.3,1.00195884]
[1768427682835,0.02969224,3364.4,3363.0,3.37653504]
[1768427683017,5.9741119,3364.5,3363.0,4.34876118]
[1768427683418,5.94441966,3364.5,3363.0,3.37653504]
[1768427683652,0.61377947,3364.4,3363.1,0.97222614]
[1768427684049,0.93349247,3364.3,3362.3,0.97222614]
[1768427684350,0.93349247,3363.9,3362.3,1.37522614]
[1768427684649,0.93349247,3363.7,3362.3,3.37715137]
[1768427684847,0.02969224,3363.6,3362.3,3.37715137]
[1768427685452,5.9453032,3364.0,3362.3,5.08194755]
[1768427685639,6.87879567,3364.0,3362.3,5.08194755]
[1768427686024,5.9453032,3364.0,3362.4,0.97222614]
[1768427686222,0.96318471,3363.9,3362.3,3.70672141]
[1768427686556,2.97282834,3363.8,3362.4,0.97222614]
[1768427686761,0.39063208,3363.7,3362.6,0.97222614]
[1768427688629,0.02969224,3363.6,3362.2,1.37522614]
[1768427688830,0.02969224,3363.6,3362.3,2.97415453]
[1768427689157,0.02969224,3363.6,3362.3,2.97415083]
[1768427689455,2.9726516,3364.0,3362.7,0.97222614]
[1768427689658,0.59451588,3363.9,3362.7,0.97222614]
[1768427689957,0.59451588,3363.9,3362.8,1.00196326]
[1768427690259,5.94477304,3364.3,3363.0,0.97222614]
[1768427690435,5.94477304,3364.3,3363.1,0.02973447]
[1768427690637,5.94477304,3364.3,3363.0,3.94573145]
[1768427690638,5.94477304,3364.3,3363.0,0.97222614]
[1768427690841,0.98775635,3364.2,3362.5,0.96006375]
[1768427691059,8.91715956,3364.3,3362.5,0.96006375]
[1768427691060,0.98775635,3364.0,3362.5,0.96006375]
[1768427691284,0.98775635,3363.6,3362.0,0.002]
[1768427691564,0.98775635,3363.4,3362.0,0.002]
[1768427691781,0.98775635,3363.2,3362.0,0.002]
[1768427692476,6.93465057,3363.1,3362.0,0.002]
[1768427692831,2.97344711,3363.1,3362.0,0.002]
[1768427693027,0.59468068,3363.0,3362.0,0.002]
[1768427694564,0.59468068,3363.0,3362.2,0.96006375]
[1768427694778,2.97332401,3363.3,3362.2,0.96006375]
[1768427695071,0.98775635,3363.0,3361.6,0.002]
[1768427695380,0.98775635,3362.8,3361.6,0.002]
[1768427696538,0.98775635,3362.6,3361.6,0.002]
[1768427696750,0.99091588,3362.5,3361.6,0.002]
[1768427697252,0.98775635,3362.4,3361.6,0.002]
[1768427698171,0.99091588,3362.5,3361.6,0.002]
[1768427698565,5.94813228,3362.4,3361.6,0.002]
[1768427700083,2.97406614,3362.4,3361.6,0.002]
[1768427700436,1.38425455,3362.3,3361.6,0.002]
[1768427700548,6.93641937,3362.1,3361.6,1e-08]
[1768427700747,0.98775635,3362.0,3360.6,0.96006375]
[1768427700948,0.404,3361.9,3360.6,0.96006375]
[1768427701148,0.73404194,3361.8,3360.6,0.96006375]
[1768427701348,2.97433151,3362.1,3360.4,0.49239587]
[1768427701349,5.94866302,3362.1,3361.0,0.96006375]
[1768427701773,2.97433151,3362.1,3361.0,0.96006375]
[1768427702177,0.3964982,3362.3,3361.0,0.96006375]
[1768427702376,3.37798477,3362.5,3361.2,0.96006375]
[1768427702686,2.973481,3363.1,3361.6,0.96006375]
[1768427702687,2.97362395,3362.9,3361.6,0.96006375]
[1768427703385,5.9472479,3362.9,3361.6,0.96006375]
[1768427703549,5.9472479,3362.9,3361.8,0.96006375]
[1768427704250,5.9472479,3362.9,3356.8,0.012]
[1768427704251,0.98875635,3362.8,3359.8,2.41741899]
[1768427704463,0.98875635,3362.8,3356.4,2.97931165]
[1768427704464,0.99975635,3358.5,3356.4,2.97931165]
[1768427704790,0.99975635,3358.5,3356.5,0.29793117]
[1768427704791,0.98775635,3358.3,3356.5,0.29793117]
[1768427704990,0.98775635,3358.1,3356.1,0.403]
[1768427705162,0.98775635,3357.9,3355.5,0.96006375]
[1768427705362,0.98775635,3357.1,3355.5,0.96006375]
[1768427705695,2.81194352,3358.0,3355.5,0.96006375]
[1768427705696,0.27482758,3357.0,3355.5,0.96006375]
[1768427705896,0.27482758,3356.9,3355.5,0.96006375]
[1768427706094,1.39175635,3357.2,3355.5,0.96006375]
[1768427706309,2.30211989,3357.9,3355.5,0.96006375]
[1768427706310,1.39175635,3357.1,3355.5,0.96006375]
[1768427706475,0.404,3357.0,3355.5,0.96006375]
[1768427706672,2.9789389,3356.9,3355.5,0.96006375]
[1768427707008,3.41600842,3356.9,3355.5,0.96006375]
[1768427707303,0.43706952,3356.9,3355.5,0.96006375]
[1768427707505,0.404,3357.1,3355.5,6.92040533]
[1768427707803,0.404,3357.1,3355.5,3.94022354]
[1768427708026,2.1172679,3357.2,3355.5,0.96006375]
[1768427708176,0.98775635,3356.7,3353.0,3.0323376]
[1768427708376,0.98775635,3356.5,3353.5,0.76217927]
[1768427708596,0.98775635,3356.3,3353.5,0.76217927]
[1768427708883,0.98775635,3355.5,3353.4,0.00169922]
[1768427709079,0.98775635,3355.1,3353.4,0.00169922]
[1768427709313,0.98775635,3355.1,3351.9,0.403]
[1768427709314,0.98775635,3354.9,3352.3,0.128]
[1768427709528,0.98775635,3354.9,3352.9,0.403]
[1768427709816,0.98775635,3354.9,3352.9,3.38547791]
[1768427710020,0.98775635,3354.9,3353.1,2.98230594]
[1768427710188,0.98775635,3354.9,3353.5,2.98190535]
[1768427710387,0.98775635,3354.9,3353.6,3.28005228]
[1768427710591,0.98775635,3354.9,3353.6,0.29819053]
[1768427710915,2.14399179,3355.7,3352.9,0.403]
[1768427710916,0.98775635,3355.6,3353.7,5.96356262]
[1768427711107,0.98775635,3355.6,3353.8,0.403]
[1768427711306,0.98775635,3355.1,3352.1,0.35917927]
[1768427711516,1.39175635,3355.1,3353.6,2.98186911]
[1768427711806,1.39175635,3355.1,3353.7,0.29818691]
[1768427712005,0.98775635,3355.0,3353.7,0.29818691]
[1768427712304,1.84377424,3355.6,3353.7,0.29818691]
[1768427712694,2.98018179,3355.5,3353.8,5.9633848]
[1768427713224,0.98775635,3355.4,3354.0,0.002]
[1768427713393,0.98775635,3355.2,3354.0,0.002]
[1768427713594,0.85601789,3355.6,3354.0,0.002]
[1768427713820,0.98775635,3355.5,3354.0,0.002]
[1768427714623,0.85601789,3355.6,3354.0,8.9465438]
[1768427714935,0.85601789,3355.6,3354.0,5.9650292]
[1768427714936,0.98775635,3355.5,3354.0,5.9650292]
[1768427715096,0.98775635,3355.5,3354.1,0.59650292]
[1768427715296,0.96609235,3355.5,3354.1,0.59650292]
[1768427716295,0.96609235,3355.5,3354.0,0.002]
[1768427716496,0.98775635,3355.3,3354.0,0.002]
[1768427716724,0.98775635,3355.1,3354.0,0.002]
[1768427718028,0.98775635,3354.7,3354.0,0.002]
[1768427718912,3.96867572,3354.7,3354.0,0.002]
[1768427719101,6.94959509,3354.7,3354.0,0.002]
[1768427719327,0.98775635,3354.6,3354.0,0.002]
[1768427720851,6.88106224,3354.5,3354.0,0.002]
[1768427721058,0.91892184,3354.4,3354.0,0.002]
[1768427721243,5.9621404,3354.5,3354.0,0.002]
[1768427721563,6.88598982,3354.5,3354.0,0.002]
[1768427722266,3.90491962,3354.5,3354.0,0.002]
[1768427722632,2.9810702,3354.5,3354.0,0.002]
[1768427722989,0.92384942,3354.9,3354.0,0.002]
[1768427723826,0.36179062,3355.2,3354.0,0.002]
[1768427725554,5.96107418,3355.1,3354.0,0.002]
[1768427725742,0.96110724,3355.0,3354.0,0.002]
[1768427725943,0.92384942,3354.7,3354.0,0.002]
[1768427726173,0.92384942,3354.5,3352.7,2.98261194]
[1768427726330,0.92384942,3354.3,3352.8,3.579122]
[1768427726526,0.92384942,3354.3,3352.8,0.59654466]
[1768427726764,0.92384942,3354.3,3352.6,0.403]
[1768427726765,0.92384942,3354.8,3354.0,0.002]
[1768427727333,0.03726115,3354.7,3354.0,0.002]
[1768427727533,5.96196266,3354.6,3354.0,0.002]
[1768427727788,0.36179062,3355.2,3354.0,0.002]
[1768427728080,5.9608965,3355.2,3354.0,0.002]
[1768427728383,2.98044825,3355.2,3354.0,0.002]
[1768427728535,3.90422401,3355.3,3354.0,0.002]
[1768427729072,2.98037459,3355.3,3354.0,0.002]
[1768427729271,0.85601789,3355.6,3354.1,0.38084327]
[1768427729439,0.92384942,3356.5,3354.4,11.92463628]
[1768427729646,6.88244297,3356.5,3354.5,0.402]
[1768427729863,0.92384942,3356.4,3354.5,0.402]
[1768427730683,0.92384942,3356.9,3354.6,7.03187277]
[1768427730984,0.92384942,3356.9,3354.6,0.15531009]
[1768427731272,0.92384942,3356.9,3354.7,0.86268716]
[1768427731452,5.95805528,3356.8,3354.8,8.94241086]
[1768427731838,6.8819047,3356.8,3354.8,8.94241086]
[1768427732050,3.90287706,3356.8,3354.8,8.94241086]
[1768427732453,0.92384942,3356.7,3354.8,8.94241086]
[1768427732640,0.92384942,3356.7,3354.9,0.7414716]
[1768427733474,0.92384942,3356.7,3355.0,8.94187779]
[1768427733856,0.92384942,3357.7,3355.0,11.92250372]
[1768427734052,0.92384942,3357.6,3355.0,11.92250372]
[1768427734978,0.92384942,3357.4,3355.0,5.96125186]
[1768427735178,11.91291656,3357.7,3355.1,0.86268716]
[1768427735179,0.92384942,3357.2,3355.1,0.86268716]
[1768427735370,0.92384942,3357.0,3355.2,0.402]
[1768427735677,0.92384942,3356.8,3355.3,5.96071886]
[1768427737560,0.92384942,3357.6,3355.3,11.92143772]
[1768427737872,0.92384942,3357.6,3355.5,0.128]
[1768427738081,2.97816335,3357.8,3355.5,0.128]
[1768427738450,0.92384942,3358.0,3355.5,1.55314606]
[1768427738644,0.92384942,3358.0,3355.8,7.03187277]
[1768427738873,0.92384942,3358.0,3355.9,0.402]
[1768427739080,0.92384942,3358.0,3356.0,0.74338728]
[1768427739259,0.001,3357.3,3356.0,0.74338728]
[1768427739573,0.001,3357.3,3356.1,8.93894697]
[1768427739780,2.97805175,3357.9,3356.1,8.93894697]
[1768427741171,2.98955275,3358.5,3356.1,8.93894697]
[1768427741172,0.012,3358.5,3357.2,7.03187277]
[1768427741389,0.92384942,3361.0,3357.9,0.781]
[1768427741695,0.92384942,3360.8,3359.0,0.15518017]
[1768427741896,0.92384942,3360.6,3359.1,0.402]
[1768427742548,0.92384942,3360.4,3359.0,0.15518017]
[1768427742770,0.96104847,3360.3,3358.1,0.402]
[1768427742968,0.92384942,3359.7,3358.1,0.402]
[1768427743282,0.92384942,3359.5,3358.1,0.402]
[1768427743479,0.92384942,3359.3,3358.2,2.97776697]
[1768427743692,0.92384942,3359.3,3358.1,3.37985113]
[1768427743849,0.39006461,3359.2,3358.1,3.37985113]
[1768427744046,0.92384942,3359.8,3358.1,3.37985113]
[1768427744983,0.92384942,3359.8,3358.1,6.35772552]
[1768427745780,2.97645623,3359.7,3358.1,6.35772552]
[1768427746094,3.90022647,3359.8,3358.1,6.35772552]
[1768427747886,6.87660352,3359.8,3358.1,6.35772552]
[1768427748183,0.68766035,3359.7,3358.2,0.63577255]
[1768427750082,2.97654482,3359.6,3358.3,2.97769704]
[1768427750588,2.97654482,3359.6,3358.4,0.402]
[1768427751381,0.001,3359.4,3358.4,0.402]
[1768427751585,0.001,3359.4,3358.3,2.97769704]
[1768427751586,0.95324704,3359.4,3358.3,2.97769704]
[1768427751776,1.61741369,3359.4,3358.5,0.402]
[1768427751974,4.59414027,3359.4,3358.5,0.402]
[1768427752178,1.61741369,3359.4,3358.5,3.37951448]
[1768427753378,0.45940747,3359.3,3358.5,3.37951448]
[1768427753578,0.001,3359.4,3358.6,0.402]
[1768427753776,0.001,3359.4,3358.6,0.152]
[1768427753975,0.001,3359.4,3358.6,3.12935709]
[1768427754387,0.001,3359.4,3358.3,0.92035952]
[1768427754686,0.001,3359.4,3358.4,0.402]
[1768427754862,0.001,3359.4,3358.6,2.97741938]
[1768427755890,0.001,3359.4,3358.6,5.95485045]
[1768427756385,0.95224704,3359.7,3358.6,5.95485045]
[1768427756587,1.34509965,3359.7,3358.6,2.97741938]
[1768427756756,3.9287252,3359.7,3358.6,2.97741938]
[1768427757284,0.95224704,3359.7,3358.6,5.95485045]
[1768427757895,1.18581734,3360.8,3358.6,5.95485045]
[1768427758591,0.95224704,3360.7,3358.6,5.95485045]
[1768427758786,0.95224704,3360.5,3358.7,0.93344272]
[1768427759695,0.95224704,3360.3,3358.8,0.402]
[1768427759863,0.95224704,3360.1,3358.8,0.402]
[1768427760191,3.9283754,3360.1,3358.9,2.97716514]
[1768427760580,3.9283754,3360.1,3358.9,5.95433028]
[1768427760784,4.61880734,3360.1,3358.9,5.95433028]
[1768427761184,0.98944942,3360.0,3358.4,2.97758602]
[1768427761395,0.98944942,3360.0,3357.8,0.92035952]
[1768427761560,0.98944942,3360.0,3358.2,2.97773557]
[1768427761760,0.98944942,3360.0,3358.3,2.97768909]
[1768427761966,0.95224704,3359.8,3358.0,0.92035952]
[1768427762167,1.06082664,3359.9,3358.0,0.92035952]
[1768427762168,0.95224704,3359.6,3358.1,2.97780517]
[1768427762367,0.95224704,3359.4,3358.1,2.97780517]
[1768427762591,0.95224704,3359.4,3358.2,0.402]
[1768427762793,0.95224704,3359.4,3357.2,0.92035952]
[1768427762992,0.95224704,3359.4,3358.0,2.97790985]
[1768427763296,0.95224704,3359.4,3358.1,0.402]
[1768427763505,0.95224704,3359.4,3358.5,0.002]
[1768427764196,0.001,3359.8,3358.1,0.002]
[1768427764197,0.95224704,3359.1,3358.1,0.002]
[1768427764366,0.95224704,3358.9,3357.8,0.402]
[1768427765478,0.95224704,3358.9,3357.6,0.402]
[1768427766175,0.95224704,3358.7,3357.6,0.402]
[1768427766504,0.95224704,3358.7,3357.2,2.97867167]
[1768427766674,0.95224704,3358.7,3357.3,0.402]
[1768427766875,0.95224704,3358.5,3357.2,2.978663]
[1768427767196,0.95224704,3358.5,3357.4,0.402]
[1768427768011,0.98840084,3358.6,3357.4,0.402]
[1768427768012,0.98840084,3358.6,3357.5,2.97835383]
[1768427768293,5.95450756,3358.8,3357.4,0.402]
[1768427768294,0.95224704,3358.8,3357.4,0.402]
[1768427769001,0.95224704,3358.8,3357.5,2.97840655]
[1768427769296,0.95224704,3358.8,3357.5,5.9568131]
[1768427770682,2.97734242,3358.7,3357.5,2.97840655]
[1768427771078,3.92953047,3358.8,3357.5,2.97840655]
[1768427771270,4.32248352,3358.8,3357.5,3.31644721]
[1768427771790,1.34520009,3358.8,3357.5,6.29485376]
[1768427771989,0.95224704,3358.8,3357.5,7.21521328]
[1768427773000,0.95224704,3359.1,3357.5,7.21521328]
[1768427773199,0.95224704,3359.1,3357.6,0.402]
[1768427773499,0.95224704,3358.9,3357.3,2.978579]
[1768427773699,11.90724256,3359.3,3357.4,0.402]
[1768427773700,0.95224704,3358.7,3357.4,0.402]
[1768427774302,0.95224704,3358.7,3357.5,0.402]
[1768427774800,0.95224704,3358.5,3357.1,2.97874725]
[1768427775110,0.95224704,3358.3,3357.6,0.402]
[1768427775779,0.95224704,3358.3,3357.7,0.402]
[1768427776205,0.95224704,3358.3,3357.0,1.39868996]
[1768427776411,0.95224704,3358.1,3357.3,0.002]
[1768427776611,0.95224704,3358.1,3356.8,0.002]
[1768427776809,0.95224704,3357.7,3356.8,0.002]
[1768427777109,0.95224704,3357.5,3357.0,0.002]
[1768427777311,5.95628088,3357.8,3357.0,0.002]
[1768427777510,0.95224704,3357.7,3356.8,0.002]
[1768427779018,2.97831784,3357.6,3356.8,0.002]
[1768427779616,3.66839137,3358.4,3356.8,0.002]
[1768427779617,2.97805175,3357.9,3356.8,0.002]
[1768427779819,0.95224704,3358.3,3356.8,0.63824211]
[1768427780112,3.92994408,3358.3,3356.8,1.55860163]
[1768427780315,3.92994408,3358.3,3356.9,0.402]
[1768427780614,0.94950167,3358.2,3356.9,0.402]
[1768427781185,5.95574878,3358.1,3356.9,0.402]
[1768427781387,5.95574878,3358.1,3357.0,0.49397109]
[1768427781585,2.97787439,3358.1,3357.0,0.49397109]
[1768427782922,0.94950167,3358.2,3357.0,0.49397109]
[1768427783104,3.92730225,3358.2,3357.0,0.49397109]
[1768427783414,3.92730225,3358.2,3357.1,2.97876143]
[1768427783585,3.92730225,3358.2,3357.1,3.75636242]
[1768427783785,3.92730225,3358.2,3357.1,0.77760099]
[1768427784084,0.99461049,3358.1,3357.1,0.402]
[1768427784714,1.03183502,3358.0,3356.8,0.002]
[1768427784882,0.49461049,3358.0,3356.8,0.002]
[1768427785086,0.99461049,3357.8,3356.8,0.002]
[1768427785288,0.99461049,3357.6,3356.8,0.002]
[1768427787494,3.97296203,3357.6,3356.8,0.002]
[1768427787989,2.97835154,3357.6,3356.8,0.002]
[1768427788184,2.97805175,3357.9,3356.8,0.002]
[1768427788726,5.95610843,3357.9,3356.9,0.402]
[1768427789387,2.97805175,3357.9,3356.9,0.402]
[1768427789589,3.97257356,3358.0,3356.9,0.402]
[1768427789788,0.001,3357.3,3357.0,0.33829651]
[1768427790096,2.97791399,3358.1,3357.0,1.32347282]
[1768427790299,2.82876211,3358.1,3357.0,1.32347282]
[1768427790495,2.82876211,3358.1,3357.1,0.76853001]
[1768427791094,0.99461049,3358.3,3357.1,0.76853001]
[1768427791299,2.9775411,3358.5,3357.1,1.75370632]
[1768427791497,0.99461049,3358.4,3357.1,0.76853001]
[1768427791710,0.99461049,3358.4,3356.9,2.97888672]
[1768427791905,1.0318317,3358.3,3357.0,0.402]
[1768427792198,0.99461049,3358.1,3356.8,0.002]
[1768427792498,0.99461049,3358.1,3356.9,0.402]
[1768427792701,0.99461049,3357.9,3356.9,0.402]
[1768427792933,0.99461049,3357.9,3356.8,0.002]
[1768427792934,0.99461049,3357.7,3356.8,0.002]
[1768427793221,0.99461049,3357.5,3356.8,0.002]
[1768427793590,3.97308453,3357.5,3356.8,0.002]
[1768427794317,3.97302433,3357.5,3356.8,0.002]
[1768427795018,7.64657488,3357.5,3356.8,0.002]
[1768427798529,0.99461049,3357.4,3356.8,0.002]
[1768427799652,2.97858398,3357.3,3356.8,0.002]
[1768427800029,2.97858398,3357.3,3355.6,2.98206128]
[1768427800030,0.99461049,3357.2,3355.6,0.002]
[1768427800229,0.99461049,3357.2,3356.0,2.97972015]
[1768427800457,0.99461049,3357.2,3356.1,0.59596256]
[1768427800656,0.99461049,3357.2,3356.1,2.97964477]
[1768427801167,0.99461049,3358.4,3356.1,0.98517631]
[1768427801364,0.99461049,3358.2,3356.5,2.97924657]
[1768427801536,0.99461049,3358.2,3356.6,0.402]
[1768427801853,0.99461049,3357.9,3355.7,0.98517631]
[1768427802062,0.99461049,3357.9,3357.1,0.002]
[1768427802429,0.99461049,3357.7,3357.1,0.002]
[1768427803322,0.99461049,3357.7,3355.9,2.97982272]
[1768427803556,0.99461049,3357.7,3356.2,2.97954319]
[1768427803859,0.99461049,3357.5,3356.2,0.29795432]
[1768427804630,0.99461049,3357.5,3356.2,3.27749274]
[1768427805038,0.99461049,3357.5,3356.2,0.29795432]
[1768427806031,6.95160101,3357.4,3356.2,0.29795432]
[1768427806761,6.95160101,3357.4,3356.2,3.27749825]
[1768427807059,7.64676111,3357.4,3356.2,3.27749825]
[1768427807454,7.64676111,3357.4,3356.2,0.29795432]
[1768427807666,7.64676111,3357.4,3356.2,3.27750379]
[1768427808758,0.99461049,3357.3,3356.2,0.29795432]
[1768427808960,0.99461049,3357.1,3355.6,0.002]
[1768427809330,0.99461049,3356.9,3355.8,2.97989868]
[1768427809535,0.404,3357.0,3355.8,2.97989868]
[1768427809536,0.404,3357.0,3355.9,0.69471572]
[1768427809757,0.99461049,3357.2,3355.9,3.6745378]
[1768427809955,0.99461049,3357.2,3355.9,0.69471572]
[1768427810965,0.93039011,3357.0,3355.9,3.67450825]
[1768427811345,0.93039011,3357.0,3355.9,0.69471572]
[1768427811951,0.93039011,3357.0,3356.0,0.46597707]
[1768427812140,2.97862622,3357.3,3356.1,0.96101199]
[1768427812356,2.97862622,3357.3,3356.2,0.96101199]
[1768427812559,2.97862622,3357.3,3356.1,0.96101199]
[1768427812757,2.97822914,3357.7,3356.1,0.96101199]
[1768427813096,2.97822914,3357.7,3356.3,0.96101199]
[1768427813466,0.93039011,3358.2,3356.6,0.96101199]
[1768427813642,3.9088426,3358.6,3356.8,0.96101199]
[1768427813849,0.93139011,3358.6,3356.8,0.96101199]
[1768427814053,0.001,3358.6,3356.8,0.96101199]
[1768427814835,0.001,3358.6,3356.9,8.9368167]
[1768427815041,0.001,3358.6,3357.1,0.96101199]
[1768427815437,7.068e-05,3358.6,3357.9,0.96101199]
[1768427815669,7.068e-05,3358.6,3358.0,0.402]
[1768427816242,7.068e-05,3358.6,3358.1,0.96101199]
[1768427816654,0.93139011,3359.8,3358.1,0.96101199]
[1768427816970,6.92050827,3359.7,3358.2,2.97778571]
[1768427817181,0.93039011,3359.6,3358.1,3.93887738]
[1768427817843,0.93039011,3359.6,3358.1,6.91675177]
[1768427818844,0.93039011,3359.6,3358.2,0.96101199]
[1768427819046,3.42913315,3359.8,3358.2,0.96101199]
[1768427819254,3.42913315,3359.8,3358.4,0.96101199]
[1768427819442,4.35952326,3359.8,3358.4,0.96101199]
[1768427820444,0.93139011,3359.8,3358.4,0.96101199]